bitfinex/quotes_BTCUSD_20250508
["timestamp","ask_amount","ask_price","bid_price","bid_amount"]
[1746686126486,0.025,98895.0,98894.0,0.01117449]
[1746686129073,0.01,98895.0,98894.0,0.01117449]
[1746686130804,0.01,98895.0,98894.0,0.21341122]
[1746686131528,0.01,98895.0,98894.0,0.01117449]
[1746686131742,0.01,98895.0,98894.0,0.03049872]
[1746686132355,0.006,98895.0,98894.0,0.02949872]
[1746686132773,0.004,98895.0,98894.0,0.02849872]
[1746686132992,0.01411173,98895.0,98891.0,0.20224084]
[1746686133211,0.004,98895.0,98894.0,0.02848156]
[1746686133410,0.0191,98895.0,98891.0,0.20224084]
[1746686133611,0.0191,98895.0,98894.0,0.02848156]
[1746686133844,0.0191,98895.0,98894.0,0.001]
[1746686134049,0.0346,98895.0,98894.0,0.02947959]
[1746686134247,0.0346,98895.0,98894.0,0.01993729]
[1746686134248,0.0366,98895.0,98894.0,0.01993729]
[1746686134907,0.0346,98895.0,98894.0,0.04841688]
[1746686135155,0.0376,98895.0,98894.0,0.01993729]
[1746686135343,0.0376,98895.0,98894.0,0.04841688]
[1746686135475,0.03450129,98895.0,98894.0,0.01993729]
[1746686135675,0.03450129,98895.0,98894.0,0.04841688]
[1746686135930,0.03450129,98895.0,98894.0,0.05788646]
[1746686138065,0.01900129,98895.0,98894.0,0.05788646]
[1746686139807,0.08431124,98895.0,98894.0,0.05788646]
[1746686140213,0.08431124,98895.0,98894.0,0.02940687]
[1746686142001,0.03637003,98895.0,98894.0,0.02940687]
[1746686142226,0.03637003,98895.0,98894.0,0.02785869]
[1746686152415,0.03637003,98895.0,98894.0,0.05636194]
[1746686152605,0.03637003,98895.0,98894.0,0.02785869]
[1746686152743,0.03637003,98895.0,98894.0,0.05636194]
[1746686158026,0.02137003,98895.0,98894.0,0.05636194]
[1746686159825,0.03637003,98895.0,98894.0,0.05636194]
[1746686162195,0.03637003,98895.0,98894.0,0.02785869]
[1746686162419,0.03637003,98895.0,98894.0,0.05634085]
[1746686162620,0.03637003,98895.0,98894.0,0.02785869]
[1746686163025,0.02137003,98895.0,98894.0,0.02785869]
[1746686163237,0.02137003,98895.0,98894.0,0.05634085]
[1746686163453,0.02137003,98895.0,98894.0,0.02785869]
[1746686163629,0.02137003,98895.0,98894.0,0.05632872]
[1746686163630,0.22360472,98895.0,98894.0,0.05632872]
[1746686163829,0.30466672,98895.0,98894.0,0.02785869]
[1746686164049,0.30466672,98895.0,98894.0,0.05632872]
[1746686164274,0.30466672,98895.0,98894.0,0.02785869]
[1746686164464,0.30466672,98895.0,98894.0,0.05632872]
[1746686164682,0.30466672,98895.0,98894.0,0.02785869]
[1746686164862,0.30466672,98895.0,98894.0,0.05633713]
[1746686165064,0.30466672,98895.0,98894.0,0.0278671]
[1746686165267,0.22123598,98895.0,98894.0,0.05633713]
[1746686165477,0.22123598,98895.0,98894.0,0.0278671]
[1746686165672,0.01900129,98895.0,98894.0,0.05633713]
[1746686165842,0.005,98895.0,98894.0,0.05633713]
[1746686167281,0.0211,98895.0,98894.0,0.05633713]
[1746686167487,0.0695569,98895.0,98894.0,0.05633713]
[1746686172676,0.28739159,98895.0,98894.0,0.0278671]
[1746686173475,0.0851569,98895.0,98894.0,0.05633239]
[1746686173685,0.0851569,98895.0,98894.0,0.0278671]
[1746686173886,0.0851569,98895.0,98894.0,0.05633239]
[1746686174091,0.0851569,98895.0,98894.0,0.0278671]
[1746686174312,0.0851569,98895.0,98894.0,0.05633239]
[1746686174513,0.0851569,98895.0,98894.0,0.0278671]
[1746686174725,0.0851569,98895.0,98894.0,0.05633239]
[1746686174907,0.08752564,98895.0,98894.0,0.0278671]
[1746686175119,0.18931976,98895.0,98894.0,0.0278671]
[1746686175463,0.18931976,98895.0,98894.0,0.00947799]
[1746686175706,0.01011285,98884.0,98881.0,0.00947799]
[1746686175905,0.0165,98882.0,98881.0,0.00947799]
[1746686176063,0.0165,98882.0,98881.0,0.0284334]
[1746686178036,0.01011214,98891.0,98887.0,0.20225044]
[1746686178258,0.01011224,98890.0,98887.0,0.20225044]
[1746686178684,0.01011204,98892.0,98888.0,0.01895541]
[1746686178904,0.0155,98901.0,98896.0,0.01011163]
[1746686179123,0.01011091,98903.0,98894.0,0.20223673]
[1746686179340,4.597e-05,98897.0,98895.0,0.01011173]
[1746686179554,4.597e-05,98897.0,98895.0,0.02906714]
[1746686179990,4.597e-05,98897.0,98896.0,0.00947799]
[1746686180196,4.597e-05,98897.0,98896.0,0.23066565]
[1746686180648,4.597e-05,98897.0,98896.0,0.25915756]
[1746686181640,0.00204597,98897.0,98896.0,0.25915756]
[1746686181836,4.597e-05,98897.0,98896.0,0.25915756]
[1746686182043,0.00104597,98897.0,98896.0,0.25915756]
[1746686182244,0.00304597,98897.0,98896.0,0.26015756]
[1746686182500,0.00204597,98897.0,98896.0,0.26015756]
[1746686182925,0.00304597,98897.0,98896.0,0.26015756]
[1746686188460,0.00304597,98897.0,98896.0,0.05792531]
[1746686193508,0.00304597,98897.0,98896.0,0.46742235]
[1746686193712,0.00304597,98897.0,98896.0,0.39792531]
[1746686194356,0.00304597,98897.0,98896.0,0.42862531]
[1746686197012,0.00304597,98897.0,98896.0,0.39792531]
[1746686200775,0.00304597,98897.0,98896.0,0.41412531]
[1746686201347,0.00304597,98897.0,98896.0,0.39792531]
[1746686201470,0.00304597,98897.0,98896.0,0.5034456]
[1746686206611,0.00304597,98897.0,98896.0,0.39792531]
[1746686208202,0.00304597,98897.0,98896.0,0.38844732]
[1746686212031,0.01914597,98897.0,98896.0,0.04844732]
[1746686212435,0.00304597,98897.0,98896.0,0.38844732]
[1746686214528,0.00304597,98897.0,98896.0,0.49099692]
[1746686217956,0.01904597,98897.0,98896.0,0.04844732]
[1746686218160,0.03404597,98897.0,98896.0,0.25067996]
[1746686218823,0.01904597,98897.0,98896.0,0.25067996]
[1746686219326,0.01904597,98897.0,98896.0,0.23172455]
[1746686219483,0.01904597,98897.0,98896.0,0.02949191]
[1746686219682,0.01904597,98897.0,98896.0,0.36949191]
[1746686219858,0.03444597,98897.0,98896.0,0.36949191]
[1746686220270,0.03444597,98897.0,98896.0,0.57172455]
[1746686222418,0.01904597,98897.0,98896.0,0.57172455]
[1746686224952,0.00304597,98897.0,98896.0,0.57172455]
[1746686225175,0.00304597,98897.0,98896.0,0.67237862]
[1746686225376,0.00304597,98897.0,98896.0,0.47014598]
[1746686225511,0.00304597,98897.0,98896.0,0.02949191]
[1746686225918,0.20527657,98897.0,98896.0,0.02949191]
[1746686226216,0.20527657,98897.0,98896.0,0.01995344]
[1746686232217,0.23737657,98897.0,98896.0,0.01995344]
[1746686233858,0.23737657,98897.0,98896.0,0.001]
[1746686237759,0.23737657,98897.0,98896.0,0.01995513]
[1746686239923,0.23737657,98897.0,98896.0,0.001]
[1746686240999,0.23737657,98897.0,98896.0,0.01995524]
[1746686241403,0.23737657,98897.0,98896.0,0.001]
[1746686245666,0.23737657,98897.0,98896.0,0.01995439]
[1746686245816,0.22177657,98897.0,98896.0,0.01995439]
[1746686248318,0.22177657,98897.0,98896.0,0.001]
[1746686248618,0.22177657,98897.0,98896.0,0.01995416]
[1746686250201,0.23837657,98897.0,98896.0,0.01995416]
[1746686251217,0.22177657,98897.0,98896.0,0.01995416]
[1746686251595,0.22177657,98897.0,98896.0,0.05030954]
[1746686251792,0.22177657,98897.0,98896.0,0.01995416]
[1746686252017,0.22177657,98897.0,98896.0,0.05030954]
[1746686252250,0.22177657,98897.0,98896.0,0.01995416]
[1746686252395,0.22177657,98897.0,98896.0,0.05030954]
[1746686252609,0.22177657,98897.0,98896.0,0.01995416]
[1746686252810,0.22177657,98897.0,98896.0,0.05030954]
[1746686253010,0.22177657,98897.0,98896.0,0.01995416]
[1746686253238,0.22177657,98897.0,98896.0,0.05030954]
[1746686255046,0.00304597,98897.0,98896.0,0.65584251]
[1746686255253,0.00304597,98897.0,98896.0,0.45360987]
[1746686256102,0.00304597,98897.0,98896.0,0.46308424]
[1746686258205,0.00304597,98897.0,98896.0,0.45360987]
[1746686261138,0.00304597,98897.0,98896.0,0.4630804]
[1746686265785,0.00304597,98897.0,98896.0,0.45360987]
[1746686269214,0.00304597,98897.0,98896.0,0.46307749]
[1746686272205,0.00304597,98897.0,98896.0,0.45360987]
[1746686274322,0.00304597,98897.0,98896.0,0.46307663]
[1746686276484,0.00304597,98897.0,98896.0,0.45360987]
[1746686281702,0.00304597,98897.0,98896.0,0.46307998]
[1746686282180,0.00304597,98897.0,98896.0,0.36954709]
[1746686283221,0.00304597,98897.0,98896.0,0.35954709]
[1746686283461,0.00304597,98897.0,98896.0,0.35007698]
[1746686284065,0.00304597,98897.0,98896.0,0.34567278]
[1746686291676,0.01011071,98905.0,98902.0,0.35011101]
[1746686291877,0.20219985,98913.0,98902.0,0.35011101]
[1746686291878,0.08093152,98956.0,98903.0,0.01454085]
[1746686292043,0.02540989,98913.0,98909.0,0.0101103]
[1746686292403,4.597e-05,98910.0,98909.0,0.3501103]
[1746686292571,0.01664597,98910.0,98909.0,0.3501103]
[1746686293009,0.02164597,98910.0,98909.0,0.35958452]
[1746686293627,0.02364597,98910.0,98909.0,0.35958452]
[1746686294381,0.0158,98912.0,98910.0,0.0101102]
[1746686294615,0.02590979,98914.0,98911.0,0.35011009]
[1746686294816,0.01010979,98914.0,98911.0,0.35011009]
[1746686295401,0.01010979,98914.0,98912.0,0.01894612]
[1746686295616,0.01010979,98914.0,98912.0,0.02842034]
[1746686295935,0.01010979,98914.0,98913.0,0.01894612]
[1746686296362,0.01010948,98917.0,98913.0,0.01894612]
[1746686296573,0.02670928,98919.0,98913.0,0.35894612]
[1746686296742,0.02670928,98919.0,98915.0,0.01010969]
[1746686296743,0.01010928,98919.0,98915.0,0.01010969]
[1746686296952,0.0166,98917.0,98915.0,0.01010969]
[1746686297171,0.0166,98918.0,98915.0,0.01010969]
[1746686297310,0.002,98917.0,98916.0,0.01010958]
[1746686297722,0.0186,98917.0,98916.0,0.55230133]
[1746686297924,0.0166,98917.0,98916.0,0.58072167]
[1746686298225,0.0186,98917.0,98916.0,0.58834433]
[1746686299674,0.002,98920.0,98919.0,0.34]
[1746686300033,0.002,98920.0,98919.0,0.35894612]
[1746686300694,0.002,98920.0,98919.0,0.39459498]
[1746686301563,0.003,98920.0,98919.0,0.39459498]
[1746686303276,0.003,98920.0,98919.0,0.39456858]
[1746686303624,0.003,98920.0,98919.0,0.48896632]
[1746686307533,0.003,98920.0,98919.0,0.39456858]
[1746686308331,0.003,98920.0,98919.0,0.52620355]
[1746686308972,0.003,98920.0,98919.0,0.4963627]
[1746686310442,0.003,98920.0,98919.0,0.5123627]
[1746686310644,0.003,98920.0,98919.0,0.4963627]
[1746686311058,0.003,98920.0,98919.0,0.05456858]
[1746686311265,0.019,98920.0,98919.0,0.05456858]
[1746686311476,0.003,98920.0,98919.0,0.05456858]
[1746686312751,0.0346,98920.0,98919.0,0.05456858]
[1746686313397,0.0346,98920.0,98919.0,0.5967542]
[1746686313608,0.0196,98920.0,98919.0,0.70227449]
[1746686314501,0.003,98920.0,98919.0,0.70227449]
[1746686320322,0.003,98920.0,98919.0,0.5967542]
[1746686321902,0.003,98920.0,98919.0,0.39456858]
[1746686328632,0.003,98920.0,98919.0,0.41016858]
[1746686328840,0.003,98920.0,98919.0,0.39456858]
[1746686329318,0.003,98920.0,98919.0,0.5967542]
[1746686329523,0.003,98920.0,98919.0,0.70227449]
[1746686330726,0.003,98920.0,98919.0,0.71837449]
[1746686331147,0.003,98920.0,98919.0,0.83470946]
[1746686331348,0.003,98920.0,98919.0,0.85030946]
[1746686331599,0.004,98929.0,98928.0,0.54216723]
[1746686331744,0.00445467,98929.0,98928.0,0.75436968]
[1746686332179,0.00445467,98929.0,98928.0,0.77937705]
[1746686333048,0.00545467,98929.0,98928.0,0.78237705]
[1746686334357,0.00445467,98929.0,98928.0,0.77937705]
[1746686334710,0.00545467,98929.0,98928.0,0.78437705]
[1746686335691,0.01010713,98940.0,98935.0,0.35010764]
[1746686335892,0.21225198,98939.0,98936.0,0.0572477]
[1746686336099,0.21225198,98939.0,98936.0,0.08221114]
[1746686336311,0.21225198,98939.0,98937.0,0.35891972]
[1746686336837,0.21225198,98939.0,98938.0,0.04388177]
[1746686338182,0.21225198,98939.0,98938.0,0.04488177]
[1746686338380,0.21225198,98939.0,98938.0,0.09315436]
[1746686338610,0.001,98939.0,98938.0,0.09315436]
[1746686342862,0.001,98939.0,98938.0,0.21151064]
[1746686343056,0.001,98939.0,98938.0,0.22578933]
[1746686343469,0.001,98939.0,98938.0,0.20948933]
[1746686347316,0.001,98939.0,98938.0,0.54948933]
[1746686347989,0.001,98939.0,98938.0,0.58148933]
[1746686348613,0.001,98939.0,98938.0,0.56588933]
[1746686351764,0.001,98939.0,98938.0,0.58148933]
[1746686352624,0.002,98945.0,98944.0,0.55667539]
[1746686352813,0.002,98945.0,98944.0,0.76595812]
[1746686353021,0.002,98945.0,98944.0,0.79081525]
[1746686353427,0.002,98945.0,98944.0,0.79333497]
[1746686354321,0.002,98945.0,98944.0,0.79533497]
[1746686354518,0.002,98945.0,98944.0,0.79633497]
[1746686356781,0.002,98945.0,98944.0,0.78033497]
[1746686357544,0.002,98945.0,98944.0,0.04677685]
[1746686357545,0.033,98945.0,98944.0,0.04677685]
[1746686357750,0.23513249,98945.0,98944.0,0.04677685]
[1746686358260,0.23513249,98945.0,98944.0,0.02191972]
[1746686358655,0.23513249,98945.0,98944.0,0.01991972]
[1746686359092,0.23513249,98945.0,98944.0,0.01891972]
[1746686359644,0.23613249,98945.0,98944.0,0.01891972]
[1746686365837,0.23435905,98932.0,98931.0,0.34]
[1746686366238,0.23435905,98932.0,98931.0,0.35888404]
[1746686367020,0.23435905,98932.0,98931.0,0.36088404]
[1746686367221,0.23435905,98932.0,98931.0,0.36388404]
[1746686367920,0.23435905,98932.0,98931.0,0.02388404]
[1746686368174,0.21825905,98932.0,98931.0,0.02388404]
[1746686372901,0.0161,98932.0,98931.0,0.02388404]
[1746686375297,0.0316,98932.0,98931.0,0.02388404]
[1746686375444,0.0161,98932.0,98931.0,0.02388404]
[1746686375640,0.0161,98932.0,98931.0,0.04871087]
[1746686377294,0.23435905,98932.0,98931.0,0.04871087]
[1746686377732,0.23435905,98932.0,98931.0,0.005]
[1746686378800,0.23435905,98932.0,98931.0,0.003]
[1746686379051,0.23435905,98932.0,98931.0,0.004]
[1746686379413,0.23435905,98932.0,98931.0,0.001]
[1746686379779,0.23435905,98932.0,98931.0,0.003]
[1746686382950,0.23435905,98932.0,98931.0,0.02188404]
[1746686383355,0.23435905,98932.0,98931.0,0.003]
[1746686383795,0.23435905,98932.0,98931.0,0.02188404]
[1746686385557,0.23435905,98932.0,98931.0,0.003]
[1746686386291,0.23435905,98932.0,98931.0,0.02188404]
[1746686387183,0.21825905,98932.0,98931.0,0.02188404]
[1746686388089,0.20215905,98932.0,98931.0,0.02188404]
[1746686388669,0.20215905,98932.0,98931.0,0.04670899]
[1746686391171,0.18167497,98932.0,98931.0,0.04670899]
[1746686392347,0.20452575,98933.0,98931.0,0.04670899]
[1746686392791,0.20452575,98933.0,98932.0,0.35888404]
[1746686393151,0.01010774,98934.0,98932.0,0.38370969]
[1746686393357,0.01010744,98937.0,98932.0,0.38370969]
[1746686393580,0.21225483,98938.0,98933.0,0.02899189]
[1746686393849,0.01010754,98936.0,98934.0,0.45253471]
[1746686394056,0.01010754,98936.0,98934.0,0.47741305]
[1746686394400,0.01010754,98936.0,98935.0,0.35888404]
[1746686394800,0.01010754,98936.0,98935.0,0.38376169]
[1746686395448,0.01110754,98936.0,98935.0,0.04376169]
[1746686396527,0.01010754,98936.0,98935.0,0.04376169]
[1746686396736,0.01599834,98935.0,98932.0,0.35010795]
[1746686397673,0.01599834,98935.0,98932.0,0.01010795]
[1746686397879,0.01599834,98935.0,98932.0,0.01110795]
[1746686398086,0.01599834,98935.0,98932.0,0.35110795]
[1746686398660,0.01599834,98935.0,98932.0,0.341]
[1746686399950,0.21815221,98935.0,98932.0,0.001]
[1746686400506,0.0058907,98935.0,98932.0,0.01110795]
[1746686400679,0.0058907,98935.0,98934.0,0.54215497]
[1746686401082,0.0058907,98935.0,98934.0,0.34]
[1746686401345,0.0058907,98935.0,98934.0,0.54215497]
[1746686401970,0.0058907,98935.0,98934.0,0.54315497]
[1746686403554,0.0058907,98935.0,98934.0,0.66447526]
[1746686403846,0.0058907,98935.0,98934.0,0.64867526]
[1746686404071,0.0058907,98935.0,98934.0,0.341]
[1746686404294,0.0058907,98935.0,98934.0,0.54315497]
[1746686404448,0.0058907,98935.0,98934.0,0.56385365]
[1746686406086,0.0058907,98935.0,98934.0,0.36169868]
[1746686409025,0.0058907,98935.0,98934.0,0.38058178]
[1746686412501,0.0058907,98935.0,98934.0,0.38058363]
[1746686413746,0.0058907,98935.0,98934.0,0.46210641]
[1746686413902,0.0058907,98935.0,98934.0,0.38058363]
[1746686416158,0.0058907,98935.0,98934.0,0.39708363]
[1746686416791,0.0058907,98935.0,98934.0,0.38058363]
[1746686420604,0.0058907,98935.0,98934.0,0.5129186]
[1746686421745,0.0058907,98935.0,98934.0,0.4959186]
[1746686421992,0.0058907,98935.0,98934.0,0.58897426]
[1746686422193,0.0058907,98935.0,98934.0,0.59397426]
[1746686422519,0.0058907,98935.0,98934.0,0.59197426]
[1746686422859,0.0058907,98935.0,98934.0,0.59397426]
[1746686423490,0.0058907,98935.0,98934.0,0.40847959]
[1746686423689,0.0058907,98935.0,98934.0,0.25397426]
[1746686431661,0.0058907,98935.0,98934.0,0.26460959]
[1746686433625,0.0058907,98935.0,98934.0,0.60460959]
[1746686435603,0.0058907,98935.0,98934.0,0.40959063]
[1746686435841,0.0058907,98935.0,98934.0,0.42680566]
[1746686438383,0.0214907,98935.0,98934.0,0.08680566]
[1746686438552,0.0369907,98935.0,98934.0,0.03285036]
[1746686438978,0.0214907,98935.0,98934.0,0.37285036]
[1746686439376,0.0369907,98935.0,98934.0,0.37285036]
[1746686439501,0.0370907,98935.0,98934.0,0.37285036]
[1746686439880,0.0370907,98935.0,98934.0,0.03285036]
[1746686440147,0.23924362,98935.0,98934.0,0.03285036]
[1746686440314,0.0370907,98935.0,98934.0,0.03285036]
[1746686442193,0.03682285,98935.0,98934.0,0.03285036]
[1746686443389,0.02122285,98935.0,98934.0,0.03285036]
[1746686444455,0.02122285,98935.0,98934.0,0.03085036]
[1746686444616,0.02122285,98935.0,98934.0,0.03185036]
[1746686444816,0.02122285,98935.0,98934.0,0.02885036]
[1746686445460,0.02122285,98935.0,98934.0,0.03085036]
[1746686447323,0.00562285,98935.0,98934.0,0.03085036]
[1746686447686,0.00562285,98935.0,98934.0,0.04975573]
[1746686449545,0.00562285,98935.0,98934.0,0.04975285]
[1746686450790,0.00562285,98935.0,98934.0,0.59190782]
[1746686454733,0.02182285,98935.0,98934.0,0.59190782]
[1746686458431,0.00562285,98935.0,98934.0,0.59190782]
[1746686460372,0.00252383,98935.0,98934.0,0.69456273]
[1746686463394,0.00252383,98935.0,98934.0,0.59190782]
[1746686467037,0.00252383,98935.0,98934.0,0.5903618]
[1746686474646,0.00252383,98935.0,98934.0,0.38820683]
[1746686475841,0.03422383,98935.0,98934.0,0.02930434]
[1746686476041,0.23874549,98935.0,98934.0,0.02930434]
[1746686476240,0.30573444,98935.0,98934.0,0.003]
[1746686476639,0.30573444,98935.0,98934.0,0.001]
[1746686477162,0.30573444,98935.0,98934.0,0.002]
[1746686477589,0.30573444,98935.0,98934.0,0.001]
[1746686479337,0.40752856,98935.0,98934.0,0.001]
[1746686481289,0.20218358,98920.0,98919.0,0.06205635]
[1746686481496,0.23675232,98920.0,98919.0,0.06251102]
[1746686481695,0.23438358,98920.0,98919.0,0.06251102]
[1746686482490,0.23538358,98920.0,98919.0,0.06551102]
[1746686482672,0.23538358,98920.0,98919.0,0.06951102]
[1746686484589,0.32159661,98920.0,98919.0,0.06951102]
[1746686485396,0.23538358,98920.0,98919.0,0.06951102]
[1746686488677,0.21888358,98920.0,98919.0,0.06951102]
[1746686493479,0.001,98920.0,98919.0,0.06951102]
[1746686493698,0.001,98920.0,98919.0,0.08471102]
[1746686493908,0.001,98920.0,98919.0,0.11001043]
[1746686495402,0.001,98920.0,98919.0,0.09481043]
[1746686495695,0.001,98920.0,98919.0,0.09081043]
[1746686495902,0.01010897,98922.0,98919.0,0.09081043]
[1746686497177,0.001,98920.0,98919.0,0.09081043]
[1746686497400,0.001,98920.0,98919.0,0.09381043]
[1746686497749,0.01010887,98923.0,98920.0,0.01010917]
[1746686497940,0.001,98922.0,98921.0,0.2122906]
[1746686498371,0.01010866,98925.0,98922.0,0.01010897]
[1746686498577,0.01010846,98927.0,98923.0,0.01010887]
[1746686498750,0.20215974,98932.0,98927.0,0.01010846]
[1746686498951,0.01010836,98928.0,98924.0,0.01010877]
[1746686500169,0.01010836,98928.0,98924.0,0.21228395]
[1746686500375,0.21226769,98932.0,98927.0,0.01010846]
[1746686500533,0.01010785,98933.0,98928.0,0.22887559]
[1746686500875,0.01010815,98930.0,98927.0,0.01010846]
[1746686501316,0.01010795,98932.0,98927.0,0.01010846]
[1746686501592,0.2122645,98934.0,98930.0,0.21227112]
[1746686501593,0.01010774,98934.0,98930.0,0.21227112]
[1746686501935,0.01010774,98934.0,98931.0,0.01886452]
[1746686502165,0.01010754,98936.0,98931.0,0.02897257]
[1746686502378,0.01010754,98936.0,98932.0,0.01886452]
[1746686502578,0.21478594,98935.0,98932.0,0.01886452]
[1746686502849,0.01010774,98934.0,98931.0,0.01886452]
[1746686503536,0.01110774,98934.0,98932.0,0.01886452]
[1746686503697,0.01110774,98934.0,98933.0,0.01886452]
[1746686503897,0.01010774,98934.0,98933.0,0.01886452]
[1746686504308,0.01110774,98934.0,98933.0,0.01886452]
[1746686504716,0.01010774,98934.0,98932.0,0.01886452]
[1746686504934,0.01263147,98935.0,98932.0,0.02897247]
[1746686505131,0.00252383,98935.0,98933.0,0.03496452]
[1746686505348,0.00252383,98935.0,98933.0,0.01886452]
[1746686505560,0.00252383,98935.0,98934.0,0.01886452]
[1746686507479,0.00352383,98935.0,98934.0,0.01886452]
[1746686508617,0.00352383,98935.0,98932.0,0.21226538]
[1746686509336,0.00252383,98935.0,98933.0,0.20215701]
[1746686509675,0.00352383,98935.0,98933.0,0.20215701]
[1746686510645,0.00252383,98935.0,98934.0,0.02523241]
[1746686511119,0.00352383,98935.0,98934.0,0.02523241]
[1746686512262,0.00252383,98935.0,98934.0,0.02523241]
[1746686512672,0.00352383,98935.0,98934.0,0.02523241]
[1746686515519,0.00352383,98935.0,98933.0,0.20215701]
[1746686515723,0.00352383,98935.0,98934.0,0.02100036]
[1746686516320,0.00252383,98935.0,98934.0,0.02100036]
[1746686516664,0.00352383,98935.0,98934.0,0.02100036]
[1746686517162,0.00252383,98935.0,98934.0,0.02100036]
[1746686517371,0.00352383,98935.0,98934.0,0.02100036]
[1746686521152,0.00352383,98935.0,98934.0,0.02070736]
[1746686536236,0.19824102,98944.0,98938.0,0.21225393]
[1746686536591,0.0155,98943.0,98939.0,0.02094093]
[1746686536992,0.20213939,98942.0,98939.0,0.02094093]
[1746686537196,0.016,98940.0,98939.0,0.02094093]
[1746686537924,0.016,98940.0,98939.0,0.22308568]
[1746686539581,0.018,98940.0,98939.0,0.22308568]
[1746686540338,0.003,98940.0,98939.0,0.22308568]
[1746686541457,0.003,98940.0,98939.0,0.30907282]
[1746686541803,0.003,98940.0,98939.0,0.32567282]
[1746686542389,0.001,98940.0,98939.0,0.32567282]
[1746686542593,0.002,98945.0,98944.0,0.20213454]
[1746686543120,0.002,98945.0,98944.0,0.22307146]
[1746686543970,0.002,98945.0,98944.0,0.24296179]
[1746686545279,0.002,98945.0,98944.0,0.24396179]
[1746686549204,0.002,98945.0,98944.0,0.65538319]
[1746686550734,0.002,98945.0,98944.0,0.63948319]
[1746686550942,0.002,98945.0,98944.0,0.65468319]
[1746686551957,0.002,98945.0,98944.0,0.63948319]
[1746686552750,0.002,98945.0,98944.0,0.65508319]
[1746686553156,0.002,98945.0,98944.0,0.78711816]
[1746686558977,0.002,98945.0,98944.0,0.78611816]
[1746686559817,0.002,98945.0,98944.0,0.78711816]
[1746686561687,0.002,98945.0,98944.0,0.78801816]
[1746686562480,0.002,98945.0,98944.0,0.78601816]
[1746686563067,0.002,98945.0,98944.0,0.75381816]
[1746686563254,0.002,98945.0,98944.0,0.58196179]
[1746686563457,0.23613249,98945.0,98944.0,0.37982725]
[1746686563762,0.23613249,98945.0,98944.0,0.04382725]
[1746686564267,0.23613249,98945.0,98944.0,0.04282725]
[1746686564784,0.23613249,98945.0,98944.0,0.04582725]
[1746686565021,0.23713249,98945.0,98944.0,0.04582725]
[1746686565413,0.23713249,98945.0,98944.0,0.04282725]
[1746686565414,0.23613249,98945.0,98944.0,0.04282725]
[1746686565594,0.23613249,98945.0,98944.0,0.03980676]
[1746686565790,0.23613249,98945.0,98944.0,0.04180676]
[1746686566163,0.23613249,98945.0,98944.0,0.03980676]
[1746686566469,0.23613249,98945.0,98944.0,0.04180676]
[1746686567432,0.23613249,98945.0,98944.0,0.03980676]
[1746686567826,0.23613249,98945.0,98944.0,0.04080676]
[1746686568255,0.23613249,98945.0,98944.0,0.01986984]
[1746686570211,0.23613249,98945.0,98944.0,0.04072815]
[1746686570396,0.23613249,98945.0,98944.0,0.01986984]
[1746686570598,0.23613249,98945.0,98944.0,0.04072815]
[1746686570750,0.23613249,98945.0,98944.0,0.01986984]
[1746686570950,0.23613249,98945.0,98944.0,0.04072815]
[1746686571196,0.23613249,98945.0,98944.0,0.01986984]
[1746686571401,0.034,98945.0,98944.0,0.04072919]
[1746686571602,0.0179,98945.0,98944.0,0.01986984]
[1746686571769,0.0179,98945.0,98944.0,0.04075926]
[1746686574745,0.0338,98945.0,98944.0,0.04075926]
[1746686579473,0.0179,98945.0,98944.0,0.04075926]
[1746686579940,0.002,98945.0,98944.0,0.2428938]
[1746686580205,0.002,98945.0,98944.0,0.66645133]
[1746686581418,0.002,98945.0,98944.0,0.68205133]
[1746686583625,0.002,98945.0,98944.0,0.66645133]
[1746686589562,0.002,98945.0,98944.0,0.8131863]
[1746686590352,0.002,98945.0,98944.0,0.8121863]
[1746686590525,0.002,98945.0,98944.0,0.8141863]
[1746686590873,0.002,98945.0,98944.0,0.8161863]
[1746686592945,0.00064059,98945.0,98944.0,0.8161863]
[1746686593847,0.00064059,98945.0,98944.0,0.8009863]
[1746686595112,0.00064059,98945.0,98944.0,0.7857863]
[1746686602568,0.00064059,98945.0,98944.0,0.8009863]
[1746686605339,0.00064059,98945.0,98944.0,0.8162863]
[1746686605986,0.004,98949.0,98948.0,0.57266721]
[1746686606191,0.004,98949.0,98948.0,0.67446133]
[1746686606543,0.004,98949.0,98948.0,0.72939923]
[1746686606694,0.004,98949.0,98948.0,0.71409923]
[1746686607549,0.004,98949.0,98948.0,0.71709923]
[1746686607752,0.004,98949.0,98948.0,0.80065676]
[1746686607925,0.004,98949.0,98948.0,0.80365676]
[1746686610131,0.004,98949.0,98948.0,0.78765676]
[1746686620557,0.0191,98949.0,98948.0,0.3856379]
[1746686620760,0.0348,98949.0,98948.0,0.58776426]
[1746686621561,0.0348,98949.0,98948.0,0.3856379]
[1746686621792,0.0348,98949.0,98948.0,0.0456379]
[1746686624552,0.0348,98949.0,98948.0,0.02486984]
[1746686625118,0.0348,98949.0,98948.0,0.03968779]
[1746686625545,0.0348,98949.0,98948.0,0.44090222]
[1746686626083,0.004,98949.0,98948.0,0.44090222]
[1746686626638,0.0194,98949.0,98948.0,0.44090222]
[1746686629405,0.004,98949.0,98948.0,0.44090222]
[1746686631207,0.004,98949.0,98948.0,0.37968779]
[1746686631590,0.004,98949.0,98948.0,0.49702276]
[1746686631746,0.004,98949.0,98948.0,0.51342276]
[1746686631950,0.004,98949.0,98948.0,0.49702276]
[1746686632145,0.004,98949.0,98948.0,0.49902276]
[1746686632488,0.004,98949.0,98948.0,0.60354305]
[1746686632628,0.004,98949.0,98948.0,0.60554305]
[1746686632832,0.004,98949.0,98948.0,0.60354305]
[1746686633673,0.004,98949.0,98948.0,0.60554305]
[1746686639684,0.016,98965.0,98948.0,0.60554305]
[1746686639923,0.0321,98965.0,98964.0,0.20209369]
[1746686640324,0.0321,98965.0,98964.0,0.22287523]
[1746686640444,0.0321,98965.0,98964.0,0.24174507]
[1746686641291,0.03214592,98965.0,98964.0,0.24174507]
[1746686641501,0.03314592,98965.0,98964.0,0.24174507]
[1746686641638,0.03214592,98965.0,98964.0,0.30836019]
[1746686641842,0.01814592,98965.0,98964.0,0.30836019]
[1746686642054,0.01914592,98965.0,98964.0,0.30836019]
[1746686642255,0.01914592,98965.0,98964.0,0.32493879]
[1746686642856,0.01614592,98965.0,98964.0,0.32493879]
[1746686643338,0.01814592,98965.0,98964.0,0.32493879]
[1746686643468,0.01814592,98965.0,98964.0,0.25832367]
[1746686643666,0.03154592,98965.0,98964.0,0.25832367]
[1746686644264,0.03254592,98965.0,98964.0,0.25832367]
[1746686645417,0.03454592,98965.0,98964.0,0.25832367]
[1746686649407,0.01914592,98965.0,98964.0,0.25832367]